Cogmind - Beta 10.2 @@@ ROGUE MODE // 2021.12.22 @ 09:49:32 Player: Triffids Result: Destroyed by D-53 Grenadier via exploding Plasma Injector Performance ------------- Evolutions (1) 500 Regions Visited (4) 800 Robots Destroyed (25) 125 Value Destroyed (616) 616 Prototype IDs (3) 60 Alien Tech Used (0) 0 Bonus (203) 203 TOTAL SCORE: 2304 Bonus ------- Follower Combat Kills 216 Friendly Fire -13 Cogmind --------- Core Integrity 0/400 Matter 273/300 Energy 100/100 System Corruption 1% Temperature Cool (48) Movement Core (50) Location -9/Mines Parts ------- > --- POWER (1) -------- (None) > --- PROPULSION (2) --- (None) > --- UTILITY (3) ------ Improved Sensor Array Improved Signal Interpreter Armor Integrity Analyzer > --- WEAPON (3) ------- (None) > --- INVENTORY (4) ---- Aluminum Leg Particle Gun Spread Laser Grenade Launcher Peak State ------------ > --- POWER ------------ Light Nuclear Core > --- PROPULSION ------- Aluminum Leg Aluminum Leg > --- UTILITY ---------- Improved Sensor Array Improved Signal Interpreter Armor Integrity Analyzer > --- WEAPON ----------- Autogun Autogun Autogun > --- INVENTORY -------- Aluminum Leg Particle Gun Spread Laser Grenade Launcher [Rating: 17] Favorites ----------- Power Light Ion Engine Engine Light Ion Engine Power Core Light Nuclear Core Propulsion Aluminum Leg Leg Aluminum Leg Utility Small Storage Unit Device Structural Scanner Storage Small Storage Unit Processor Armor Integrity Analyzer Protection Light Armor Plating Weapon Autogun Energy Gun EM Pulse Gun Ballistic Gun Autogun Launcher Grenade Launcher Special Weapon Mining Laser Build | -11 -10 -10 -9 -9 ------- Run | Scr Mat Min Mat Min Slots Evolved 2 | . . . 2 . Power . | . . . . . Propulsion . | . . . . . Utility 1 | . . . 1 . Weapon 1 | . . . 1 . Parts Attached 33 | 6 13 6 8 . Power 5 | 1 1 1 2 . Engine 4 | 1 1 1 1 . Core 1 | . . . 1 . Reactor . | . . . . . Propulsion 7 | 2 3 2 . . Treads . | . . . . . Leg 7 | 2 3 2 . . Wheel . | . . . . . Hover . | . . . . . Flight . | . . . . . Utility 9 | 1 4 . 4 . Device 5 | . 3 . 2 . Storage 1 | 1 . . . . Processor 2 | . . . 2 . Hackware . | . . . . . Protection 1 | . 1 . . . Artifact . | . . . . . Weapon 12 | 2 5 3 2 . Energy Gun 2 | 1 1 . . . Energy Cannon . | . . . . . Ballistic Gun 7 | 1 3 1 2 . Ballistic Cannon . | . . . . . Launcher 2 | . 1 1 . . Special Weapon 1 | . . 1 . . Impact Weapon . | . . . . . Slashing Weapon . | . . . . . Piercing Weapon . | . . . . . Special Melee Weapon . | . . . . . Unidentified Prototypes . | . . . . . Parts Lost 8 | . 2 2 . 4 Power 2 | . . 1 . 1 Propulsion 2 | . . . . 2 Utility 2 | . 1 1 . . Weapon 2 | . 1 . . 1 Highest Loss Streak 4 | . 1 2 . 4 Average Slot Usage (%) 94 | . 98 93 94 89 Engine 9 | . 14 10 8 . Core 1 | . . . 2 8 Leg 25 | . 28 28 22 18 Device 10 | . 11 10 7 11 Storage 10 | . 14 14 3 . Processor 5 | . . . 17 22 Energy Gun 5 | . 18 . . . Ballistic Gun 21 | . 8 23 33 28 Special Weapon 1 | . . 3 . . Naked Turns . | . . . . . Heaviest Build 18 | 11 14 14 18 15 Greatest Support 20 | 20 20 20 20 20 Greatest Overweight (x) 1 | . . 1 . . Average Overweight (x) . | . . . . . Largest Inventory Capacity 6 | 6 6 6 6 4 Average Capacity 5 | 5 6 6 4 4 Most Carried 6 | 4 6 6 5 4 Average Carried 5 | 2 5 5 3 4 Final Capacity 6 | 6 6 6 4 4 Final Carried 6 | 2 6 6 4 4 Class Distribution -------------------- 72% | Mutant 21% | Skirmisher 5% | Gunner Dominant Class ---------------- Mutant | -10/Materials Mutant | -10/Mines Skirmisher | -9/Materials Skirmisher | -9/Mines Resources | -11 -10 -10 -9 -9 ----------- Run | Scr Mat Min Mat Min Matter Collected 728 | 253 210 76 128 61 Remotely . | . . . . . Salvage Created 731 | . 566 13 102 50 Parts 49 | . 35 6 6 2 Haulers Intercepted 2 | . 2 . . . Recyclers Shooed . | . . . . . Parts Field Recycled . | . . . . . Retrieved Matter . | . . . . . Parts Self-Destructed . | . . . . . Prevented . | . . . . . Kills | -11 -10 -10 -9 -9 ------- Run | Scr Mat Min Mat Min Combat Hostiles Destroyed 20 | . 13 3 2 2 Guns 12 | . 8 . 2 2 AOE 8 | . 5 3 . . Classes Destroyed 6 | . 5 . . 1 Hauler 2 | . 2 . . . Operator 2 | . 2 . . . Watcher 2 | . 1 . 1 . Swarmer 6 | . 3 3 . . Grunt 13 | . 10 . 2 1 Assembled 1 | . . . . 1 Best Kill Streak 3 | . 3 3 2 1 Combat Bots Only 3 | . 3 3 2 1 Max Kills in Single Turn 3 | . 2 3 1 1 Gunslinging . | . . . . . Exploded 3 | . 2 3 . . Melee . | . . . . . Uniques/NPCs Destroyed . | . . . . . Combat | -11 -10 -10 -9 -9 -------- Run | Scr Mat Min Mat Min Damage Taken 1675 | . 483 195 68 929 Core 496 | . 55 10 11 420 Absorbed by Shields . | . . . . . Core Remaining (%) 87 | 100 . 74 . . Volleys Fired 67 | . 44 10 4 9 Largest 3 | . 2 2 3 3 Hottest 123 | . 90 123 69 69 Shots Fired 138 | . 86 13 12 27 Gun 126 | . 83 4 12 27 Cannon . | . . . . . Launcher 4 | . 3 1 . . Special 8 | . . 8 . . Kinetic 55 | . 12 4 12 27 Thermal 44 | . 36 8 . . Explosive 4 | . 3 1 . . Electromagnetic 35 | . 35 . . . Robot Hit Streak 18 | . 18 . 3 4 Robot Miss Streak 5 | . 3 2 2 5 Penetration Max . | . . . . . Secondary Targets 2 | . 1 . . 1 Max Gunslinging Chain 1 | . 1 . . 1 Shots Hit Robots 74 | . 56 . 6 12 Core Hits 39 | . 29 3 3 4 Critical Hits . | . . . . . Critical Kills . | . . . . . Critical Parts Destroyed . | . . . . . Melee Attacks . | . . . . . Impact . | . . . . . Slashing . | . . . . . Piercing . | . . . . . Sneak Attacks . | . . . . . Combat Hostiles . | . . . . . Follow-up Attacks . | . . . . . Damage Inflicted 1521 | . 1075 162 131 153 Guns 1021 | . 737 . 131 153 Cannons . | . . . . . Explosions 500 | . 338 162 . . Melee . | . . . . . Ramming . | . . . . . Kinetic 402 | . 118 . 131 153 Thermal 441 | . 441 . . . Explosive 343 | . 181 162 . . Electromagnetic 335 | . 335 . . . Impact . | . . . . . Slashing . | . . . . . Piercing . | . . . . . Highest Corruption 8 | . . 8 1 1 Average Corruption 3 | . . 8 1 1 Corruption Purged . | . . . . . Effects 8 | . . 8 . . Heat Flow Errors 2 | . . 2 . . Energy Discharges 1 | . . 1 . . Data Loss (minor) 2 | . . 2 . . Data Loss (major) 1 | . . 1 . . Misfires 1 | . . 1 . . Targeting Errors 1 | . . 1 . . Overload Shots . | . . . . . Overflow Damage 18 | . 18 . . . Projectiles . | . . . . . Explosions 18 | . 18 . . . Melee . | . . . . . Knockbacks . | . . . . . Impact . | . . . . . Kinetic . | . . . . . Secondary . | . . . . . Self-Inflicted Damage 129 | . 129 . . . Shots 3 | . 3 . . . Rammed . | . . . . . Targets Rammed . | . . . . . Kicked . | . . . . . Crushed . | . . . . . Highest Temperature 243 | . 174 243 44 37 Average Temperature 46 | . 51 48 22 17 Received Heat Transfer 261 | . 159 . 36 66 Siege Activations . | . . . . . Robots Corrupted . | . . . . . Combat Hostiles . | . . . . . Parts Fried 1 | . 1 . . . Impact Corruptions . | . . . . . Robots Melted . | . . . . . Combat Hostiles . | . . . . . Parts Melted 2 | . 1 . 1 . Heat Transferred 1051 | . 1051 . . . Parts Sabotaged . | . . . . . Parts Stolen . | . . . . . Parts Stripped . | . . . . . Power Chain Reactions 2 | . 2 . . . Missiles Intercepted . | . . . . . Alert | -11 -10 -10 -9 -9 ------- Run | Scr Mat Min Mat Min Peak Influence 376 | . 376 245 164 212 Initial 92 | . . 92 . 63 Average 111 | . 165 87 40 180 Maximum Alert Level 1 | . 1 1 . 1 Low Security (%) 82 | 100 60 98 100 48 Level 1 17 | . 39 1 . 51 Level 2 . | . . . . . Level 3 . | . . . . . Level 4 . | . . . . . Level 5 . | . . . . . High Security . | . . . . . Max Security . | . . . . . Squads Dispatched 5 | . 3 . 1 1 Investigation 3 | . 1 . 1 1 Extermination . | . . . . . Reinforcement 2 | . 2 . . . Assault . | . . . . . Garrison . | . . . . . Intercept . | . . . . . Construction Impeded . | . . . . . Haulers Reinforced . | . . . . . Stealth | -11 -10 -10 -9 -9 --------- Run | Scr Mat Min Mat Min Distress Signals 2 | . 1 . 1 . Communications Jammed . | . . . . . Distress Signals . | . . . . . Times Spotted 61 | . 24 5 8 24 Peak Tracking Total 11 | . 4 2 3 11 Tactical Retreats 1 | . . . . 1 Traps | -11 -10 -10 -9 -9 ------- Run | Scr Mat Min Mat Min Traps Triggered 1 | . . . 1 . Indirectly . | . . . . . Trap Hack Attempts . | . . . . . Triggered . | . . . . . Disarmed . | . . . . . Reprogrammed . | . . . . . Reused . | . . . . . Traps Extracted . | . . . . . Installed . | . . . . . Triggered . | . . . . . Machines | -11 -10 -10 -9 -9 ---------- Run | Scr Mat Min Mat Min Machines Disabled 2 | . 1 . . 1 Max in Single Turn 1 | . 1 . . . Machines Sabotaged . | . . . . . Garrisons Compromised . | . . . . . Overloaded Fab Kills . | . . . . . Fab Network Shutdowns . | . . . . . Hacking | -11 -10 -10 -9 -9 --------- Run | Scr Mat Min Mat Min Machines Accessed 6 | . 2 1 2 1 Terminals 6 | . 2 1 2 1 Fabricators . | . . . . . Repair Stations . | . . . . . Recycling Units . | . . . . . Scanalyzers . | . . . . . Garrison Access . | . . . . . Total Hacks 21 | . 6 4 8 3 Successful 5 | . 3 1 1 . Failed 16 | . 3 3 7 3 Catastrophic 4 | . 2 . . 2 Database Lockouts . | . . . . . Manual 15 | . 5 . 7 3 Terminals 21 | . 6 4 8 3 Fabricators . | . . . . . Repair Stations . | . . . . . Recycling Units . | . . . . . Scanalyzers . | . . . . . Garrison Access . | . . . . . Terminal Hacks 5 | . 3 1 1 . Prototype ID Bank 2 | . 1 . 1 . Level Access Points 1 | . 1 . . . Branch Access Points 1 | . 1 . . . Zone Layout 1 | . . 1 . . Fabricator Hacks . | . . . . . Repair Station Hacks . | . . . . . Recycling Unit Hacks . | . . . . . Scanalyzer . | . . . . . Garrison Access Hacks . | . . . . . Unauthorized Hacks . | . . . . . Terminals . | . . . . . Fabricators . | . . . . . Repair Stations . | . . . . . Recycling Units . | . . . . . Scanalyzers . | . . . . . Garrison Access . | . . . . . Data Cores Recovered 1 | . . . 1 . Used 1 | . . . 1 . Hacking Detections 6 | . 2 1 2 1 Full Trace Events 4 | . 1 . 2 1 Feedback Events . | . . . . . Feedback Blocked . | . . . . . Robot Schematics Acquired . | . . . . . Robots Built . | . . . . . Matter . | . . . . . Time . | . . . . . Total Robot Build Rating . | . . . . . Part Schematics Acquired . | . . . . . Parts Built . | . . . . . Matter . | . . . . . Time . | . . . . . Total Part Build Rating . | . . . . . Parts Repaired . | . . . . . Time . | . . . . . Parts Recycled . | . . . . . Recycled Matter . | . . . . . Retrieved Matter . | . . . . . Retrieved Components . | . . . . . Parts Scanalyzed . | . . . . . Part Schematics Acquired . | . . . . . Parts Damaged . | . . . . . Bothacking | -11 -10 -10 -9 -9 ------------ Run | Scr Mat Min Mat Min Used RIF Installer . | . . . . . Robots Hacked . | . . . . . Non-combat . | . . . . . Combat . | . . . . . Robot Hacks Applied . | . . . . . Relay Couplers Released . | . . . . . Robots Rewired . | . . . . . Allies Hacked . | . . . . . Hacks Repelled . | . . . . . Allies | -11 -10 -10 -9 -9 -------- Run | Scr Mat Min Mat Min Total Allies 4 | . . 4 . . Largest Group 4 | . . 4 3 2 Highest-Rated Group 71 | . . 71 40 32 Highest-Rated Ally 31 | . . 31 16 16 Total Orders . | . . . . . Ally Attacks 70 | . . 14 24 32 Total Damage 951 | . . 215 266 470 Kills 13 | . . 2 5 6 Allies Corrupted . | . . . . . Allies Melted . | . . . . . Intel | -11 -10 -10 -9 -9 ------- Run | Scr Mat Min Mat Min Robot Analysis Total . | . . . . . Derelict Logs Recovered 3 | . . 2 . 1 Drone Launches . | . . . . . Drone Recoveries . | . . . . . Exploration | -11 -10 -10 -9 -9 ------------- Run | Scr Mat Min Mat Min Turns Passed 2129 | 35 572 906 343 273 Spaces Moved 1530 | 29 305 697 265 234 Core 65 | 16 . . . 49 Treads . | . . . . . Legs 1465 | 13 305 697 265 185 Wheels . | . . . . . Hover . | . . . . . Flight . | . . . . . Fastest Speed 50 | 50 120 120 120 50 Average Speed 117 | 81 120 120 120 105 Slowest Speed 150 | 120 120 150 120 120 Overloaded Moves . | . . . . . Propulsion Burnouts . | . . . . . Robots Hopped . | . . . . . Cave-ins Triggered 1 | . . 1 . . Exploration Rate (%) 48 | 4 50 99 26 65 Regions Visited 4 Branch Regions 2 Pre-discovered Areas 1 | . . . . 1 Known Exits Taken 3 | . 1 1 1 . Unknown Exits Taken 1 | 1 . . . . Scrap Searched 2 | . . 1 . 1 Spaces Dug 8 | . . 8 . . Terrain Destroyed 68 | . 51 17 . . Melee . | . . . . . Projectile 8 | . . 8 . . AOE 60 | . 51 9 . . Terrain Rammed . | . . . . . Walls Destroyed . | . . . . . Machines Disabled . | . . . . . Actions | -11 -10 -10 -9 -9 --------- Run | Scr Mat Min Mat Min Total 1735 | 39 429 738 283 246 Wait 74 | . 50 22 1 1 Move 1525 | 28 304 695 264 234 Hop . | . . . . . Pick Up 17 | 5 9 1 2 . Fast Attach 7 | 3 1 . 3 . Attach 8 | 3 3 . 2 . Detach 1 | . 1 . . . Swap 18 | . 9 6 3 . Drop 17 | . 8 3 4 2 Fire 67 | . 44 10 4 9 Melee . | . . . . . Ram . | . . . . . Kick . | . . . . . Crush . | . . . . . Escape Stasis 1 | . . 1 . . Rewire . | . . . . . Trap . | . . . . . Miscellaneous . | . . . . . Route ------- -11/Scrapyard -10/Materials (discovered 4 exits: *Mat x3 / *Min) -10/Mines (discovered 2 exits: *Mat x2) -9/Materials -9/Mines History --------- Turn | Location | Event 7 | -11/Scrapyard | Discovered new exit (range 16) 36 | -11/Scrapyard | Entered Materials 229 | -10/Materials | Discovered new exit (range 12) 311 | -10/Materials | Build established: Mutant 553 | -10/Materials | Discovered new exit (range 16) 554 | -10/Materials | Identified exit to Mines 554 | -10/Materials | Identified exit to Materials 608 | -10/Materials | Entered Mines 738 | -10/Mines | Assisted by bots powering up and referring to "LRC-V3" 824 | -10/Mines | Discovered exit to Materials (range 16) 962 | -10/Mines | Received a Mining Laser from a helpful Derelict 1304 | -10/Mines | Crushed by falling debris 1349 | -10/Mines | Learned location of 1 exit from Materials 1514 | -10/Mines | Entered Materials 1514 | -9/Materials | Accompanied by 3 allies 1514 | -9/Materials | Evolved 2 slots: Utility x1, Weapon x1 1515 | -9/Materials | Identified exit to Mines 1857 | -9/Materials | Entered Mines 1857 | -9/Mines | Accompanied by 2 allies 1930 | -9/Mines | Build established: Skirmisher 2035 | -9/Mines | Assembled infested the area 2040 | -9/Mines | Assisted by a Guerilla fighting off Assembled 2107 | -9/Mines | Core integrity fell below 50% 2114 | -9/Mines | Learned location of Recycling (-9) 2130 | -9/Mines | Destroyed by D-53 Grenadier via exploding Plasma Injector Last Messages --------------- 02077_ Acquired 1 matter. 02079_ C-30 ARC bursts open, deploying its payload. 02079_ D-53 Grenadier unfolds itself. 02081_ LO-QOD(h) destroyed. 02081_ Trooper 1a destroyed. 02084_ Trooper 1b destroyed. 02084_ Autogun destroyed. 02085_ as-38339 destroyed. 02085_ as-08858 destroyed. 02086_ Aluminum Leg destroyed. 02087_ as-58447 destroyed. 02092_ The unstable cave ceiling collapses. 02094_ as-18128 destroyed. 02094_ D-53 Grenadier destroyed. 02104_ Aluminum Leg destroyed. 02104_ Dropped Autogun. 02106_ K-01 Serf destroyed. 02114_ Acquired derelict log, extracted data. World map updated: -9/Recycling. 02130_ Plasma Injector explodes. Map ----- +----------------------------------------------------+ | ???????????# ### | | ???????????# ## | | ????????????# ### | | ?????????????# [ | | ???????#????## ! | | ???????# ??## ## | | ???????# ## # ##### | | ???????# #####???? | | ???????# ## #??????? | | ???????###### ## ##????? | | ????????????# ### #???? | | ????????????# #?# #??? | | ????????????## ##?## ### | | ?????????????### ###### | | ???????????????# ## | | ????????######## ## [ | | ????????# #?##### % | | ????????# ###########?????## = | | ????????#d#????????????????# | | ????????# #???????????????# | | ??????### #??????????????# # | | ???#### # ####????????? ## # | | ???# #???????# #?# ? | | ???# #???????# #??# ? | | ???# #???????# ???# ? | | ???# @ #???????# ????# ? | | ???# #???????# ?????# ? | | ???# #??????? ??????# ? | | ???# #????????? ??????#?? | | ???# #??????????????????? | | ???# #??????????????????? | | ???# """ """ #??????????????????? | | ???# """ """ #??????????????????? | | ???# """ """ #??????????????????? | | ???# #??????????????????? | | ???# #??????????????????? | | ???# #??????????????????? | | ???# #??????????????????? | | ???###########??????????????????? | | ????????????????????????????????? | | ????????????????????????????????? | | ????????????????????????????????? | | ????????????????????????????????? | | ????????????????????????????????? | | ????????????????????????????????? | | ????????????????????????????????? | | ????????????????????????????????? | | ????????????????????????????????? | | ????????????????????????????????? | | | +----------------------------------------------------+ Best States ------------- Heat Dissipation 35 Energy Generation 14 Energy Capacity 250 Matter Stores 300 Matter Capacity 300 Sight Range 16 Robot Scan Range 13 Terrain Scan Density 10 Armor Coverage 150 Evasion (%) 50 Armor Integrity Analysis 33 Item Schematics ----------------- None Robot Schematics ------------------ None Fabricated ------------ Nothing Alien Tech Used ----------------- None Achievements -------------- None Challenges ------------ None Game ------ Seed BorePoweredReactor Manual? 0 Play Time 00:34:50 Cumulative 75.6 hours Start 2021.12.22 @ 09:15:43 End 2021.12.22 @ 09:49:32 Sessions 1 Manual Loads 0 Difficulty Rogue Special Mode None Game No. 91 Rogue 91 Adventurer 0 Explorer 0 Win Type - Total 0 Types 0/0/0/0/0/0/0/0/0 Lore% 36 Gallery% 36 Achievement% 24 Wizard Run 0 Options --------- ASCII 0 Keyboard 1 Movement Vi Keybinds 0 Fullscreen 0 Font 20/SmallcapsGlow Map View 76x50 Tactical HUD 1 Map Filters NONE Filters NONE Steam 1 RUN: c104823d-09fc-4a48-87a5-6ae2097ff1df